Cogmind - Beta 13 @@@ ROGUE MODE // 2024.05.20 @ 07:22:07 Player: arkn Result: Destroyed by G-34 Mercenary with Small Laser Performance ------------- Evolutions (0) 0 Regions Visited (1) 200 Robots Destroyed (11) 55 Value Destroyed (314) 314 Prototype IDs (0) 0 Alien Tech Used (0) 0 Bonus (0) 0 TOTAL SCORE: 569 Bonus ------- None Cogmind --------- Core Integrity 0/250 Matter 214/300 Energy 99/100 System Corruption 0% Temperature Cool (6) Movement Rolling (130) Ox2 Location -10/Materials Parts ------- > --- POWER (1) -------- (None) > --- PROPULSION (2) --- Compact Wheel > --- UTILITY (2) ------ High-capacity Storage Unit Structural Scanner > --- WEAPON (2) ------- Light Assault Rifle Hammer > --- INVENTORY (20) --- Aluminum Leg Aluminum Leg Heat Sink Medium Battery (150) Large Battery (200) High-capacity Matter Pod (0) Structural Scanner Structural Scanner Sensor Array Improved Terrain Scanner ECM Suite Tractor Beam Grenade Launcher Mining Laser Peak State ------------ > --- POWER ------------ Ion Engine > --- PROPULSION ------- Compact Wheel Compact Wheel > --- UTILITY ---------- High-capacity Storage Unit Improved Terrain Scanner > --- WEAPON ----------- Medium Laser Light Assault Rifle > --- INVENTORY -------- Light Ion Engine Aluminum Leg Aluminum Leg Compact Wheel Compact Wheel Structural Scanner Structural Scanner Structural Scanner Sensor Array Grenade Launcher [Rating: 10] Favorites ----------- Power Ion Engine Engine Ion Engine Propulsion Compact Wheel Leg Aluminum Leg Wheel Compact Wheel Utility High-capacity Storage Unit Device Structural Scanner Storage High-capacity Storage Unit Weapon Medium Laser Energy Gun Medium Laser Ballistic Gun Light Assault Rifle Special Weapon Mining Laser Impact Weapon Hammer Build | -11 -10 ------- Run | Yrd Mat Slots Evolved . | . . Power . | . . Propulsion . | . . Utility . | . . Weapon . | . . Parts Attached 21 | 1 20 Power 1 | . 1 Engine 1 | . 1 Core . | . . Reactor . | . . Propulsion 4 | . 4 Treads . | . . Leg . | . . Wheel 4 | . 4 Hover . | . . Flight . | . . Utility 4 | 1 3 Device 3 | 1 2 Storage 1 | . 1 Processor . | . . Hackware . | . . Protection . | . . Artifact . | . . Weapon 12 | . 12 Energy Gun . | . . Energy Cannon . | . . Ballistic Gun 6 | . 6 Ballistic Cannon . | . . Launcher . | . . Special Weapon 4 | . 4 Impact Weapon 2 | . 2 Slashing Weapon . | . . Piercing Weapon . | . . Special Melee Weapon . | . . Unidentified Prototypes . | . . Parts Lost 6 | . 6 Power 2 | . 2 Propulsion 3 | . 3 Utility . | . . Weapon 1 | . 1 Highest Loss Streak 4 | . 4 To Critical Strikes . | . . Average Slot Usage (%) 99 | . 99 Engine 13 | . 13 Leg 2 | . 2 Wheel 24 | . 24 Device 14 | . 14 Storage 14 | . 14 Energy Gun 14 | . 14 Ballistic Gun 10 | . 10 Special Weapon 2 | . 2 Naked Turns . | . . Heaviest Build 50 | 14 50 Greatest Support 32 | 20 32 Greatest Overweight (x) 3 | . 3 Average Overweight (x) . | . . Largest Inventory Capacity 20 | 8 20 Average Capacity 18 | 8 18 Most Carried 17 | 8 17 Average Carried 12 | 6 13 Final Capacity 20 | 8 20 Final Carried 14 | 8 14 Class Distribution -------------------- 100% | Mutant Dominant Class ---------------- Mutant | -10/Materials Resources | -11 -10 ----------- Run | Yrd Mat Matter Collected 342 | 210 132 Remotely . | . . Salvage Created 426 | 99 327 Parts 17 | 4 13 Haulers Intercepted . | . . Recyclers Shooed . | . . Parts Field Recycled . | . . Retrieved Matter . | . . Parts Self-Destructed . | . . Prevented . | . . Kills | -11 -10 ------- Run | Yrd Mat Combat Hostiles Destroyed 8 | . 8 Guns 7 | . 7 Classes Destroyed 4 | 2 2 Tunneler 1 | 1 . Recycler 1 | 1 . Watcher 1 | . 1 Grunt 8 | . 8 Best Kill Streak 3 | 2 3 Combat Bots Only 3 | . 3 Max Kills in Single Turn 1 | 1 1 Gunslinging . | . . Exploded . | . . Melee . | . . Uniques/NPCs Destroyed . | . . Combat | -11 -10 -------- Run | Yrd Mat Hostile Shots Fired 80 | . 80 Missed 18 | . 18 Damage Taken 710 | . 710 Core 259 | . 259 Absorbed by Shields . | . . Core Remaining (%) 100 | 100 . Volleys Fired 70 | 12 58 Largest 2 | 2 2 Hottest 100 | 90 100 Shots Fired 120 | 24 96 Gun 112 | 24 88 Cannon . | . . Launcher . | . . Special 8 | . 8 Kinetic 48 | . 48 Thermal 72 | 24 48 Explosive . | . . Electromagnetic . | . . Robot Hit Streak 18 | 4 18 Robot Miss Streak 4 | 3 4 Penetration Max . | . . Secondary Targets 1 | . 1 Max Gunslinging Chain 1 | . 1 Shots Hit Robots 88 | 13 75 Core Hits 24 | 3 21 Critical Kills . | . . Critical Parts Destroyed 1 | . 1 Critical Strikes 4 | . 4 Burn 3 | . 3 Smash 1 | . 1 Melee Attacks 13 | . 13 Impact 13 | . 13 Slashing . | . . Piercing . | . . Sneak Attacks . | . . Combat Hostiles . | . . Follow-up Attacks . | . . Damage Inflicted 1056 | 154 902 Guns 774 | 154 620 Cannons . | . . Explosions . | . . Melee 282 | . 282 Ramming . | . . Kinetic 280 | . 280 Thermal 494 | 154 340 Explosive . | . . Electromagnetic . | . . Impact 282 | . 282 Slashing . | . . Piercing . | . . Highest Corruption . | . . Average Corruption . | . . Corruption Purged . | . . Corruption Blocked . | . . Overload Shots . | . . Overflow Damage 37 | . 37 Projectiles . | . . Explosions . | . . Melee 37 | . 37 Knockbacks 3 | . 3 Impact 2 | . 2 Kinetic . | . . Secondary 1 | . 1 Self-Inflicted Damage . | . . Shots . | . . Rammed . | . . Targets Rammed . | . . Kicked . | . . Crushed . | . . Highest Temperature 270 | 270 233 Average Temperature 89 | 115 82 Received Heat Transfer 405 | . 405 Siege Activations . | . . Robots Corrupted . | . . Combat Hostiles . | . . Parts Fried . | . . Impact Corruptions 2 | . 2 Robots Melted . | . . Combat Hostiles . | . . Parts Melted 7 | 1 6 Heat Transferred 1654 | 433 1221 Parts Sabotaged . | . . Parts Stolen . | . . Parts Stripped . | . . Power Chain Reactions . | . . Alert | -11 -10 ------- Run | Yrd Mat Peak Influence 124 | 10 124 Initial 6 | . 6 Average 38 | 6 40 Maximum Alert Level . | . . Low Security (%) 100 | 100 100 Level 1 . | . . Level 2 . | . . Level 3 . | . . Level 4 . | . . Level 5 . | . . High Security . | . . Max Security . | . . Squads Dispatched 3 | . 3 Investigation 3 | . 3 Extermination . | . . Reinforcement . | . . Assault . | . . Garrison . | . . Intercept . | . . Searches Triggered . | . . Construction Impeded . | . . Haulers Reinforced . | . . Active Scanning Responses . | . . Cargo Convoy Interrupts . | . . Stealth | -11 -10 --------- Run | Yrd Mat Distress Signals . | . . Communications Jammed . | . . Distress Signals . | . . Times Spotted 20 | . 20 Peak Tracking Total 8 | . 8 Tactical Retreats 4 | . 4 Traps | -11 -10 ------- Run | Yrd Mat Traps Triggered 3 | . 3 Indirectly . | . . Trap Hack Attempts . | . . Triggered . | . . Disarmed . | . . Reprogrammed . | . . Reused . | . . Traps Extracted . | . . Installed . | . . Triggered . | . . Machines | -11 -10 ---------- Run | Yrd Mat Machines Disabled . | . . Max in Single Turn . | . . Machines Repaired . | . . Machines Dismantled . | . . Machines Sabotaged . | . . Overloaded Fab Kills . | . . Hacking | -11 -10 --------- Run | Yrd Mat Machines Accessed 5 | . 5 Terminals 5 | . 5 Fabricators . | . . Repair Stations . | . . Recycling Units . | . . Scanalyzers . | . . Garrison Access . | . . Total Hacks 17 | . 17 Successful 6 | . 6 Failed 11 | . 11 Catastrophic 2 | . 2 Database Lockouts . | . . Manual 16 | . 16 Terminals 17 | . 17 Fabricators . | . . Repair Stations . | . . Recycling Units . | . . Scanalyzers . | . . Garrison Access . | . . Terminal Hacks . | . . Fabricator Hacks . | . . Repair Station Hacks . | . . Recycling Unit Hacks . | . . Scanalyzer . | . . Garrison Access Hacks . | . . Unauthorized Hacks 6 | . 6 Terminals 6 | . 6 Track 3 | . 3 Botnet 3 | . 3 Fabricators . | . . Repair Stations . | . . Recycling Units . | . . Scanalyzers . | . . Garrison Access . | . . Data Cores Recovered . | . . Used . | . . Hacking Detections 5 | . 5 Full Trace Events 1 | . 1 Feedback Events . | . . Feedback Blocked . | . . Robot Schematics Acquired . | . . Robots Built . | . . Authchips . | . . Time . | . . Total Robot Build Rating . | . . Part Schematics Acquired . | . . Parts Built . | . . Authchips . | . . Time . | . . Total Part Build Rating . | . . Parts Repaired . | . . Time . | . . Parts Recycled . | . . Recycled Matter . | . . Retrieved Matter . | . . Retrieved Components . | . . Parts Scanalyzed . | . . Part Schematics Acquired . | . . Parts Damaged . | . . Bothacking | -11 -10 ------------ Run | Yrd Mat Used RIF Installer . | . . Robots Hacked . | . . Non-combat . | . . Combat . | . . Robot Hacks Applied . | . . Relay Couplers Released . | . . Fabnet Peak Effective % . | . . Robots Rewired . | . . Allies Hacked . | . . Hacks Repelled . | . . Allies | -11 -10 -------- Run | Yrd Mat Total Allies . | . . Largest Group . | . . Highest-Rated Group . | . . Highest-Rated Ally . | . . Total Orders . | . . Ally Attacks . | . . Total Damage . | . . Kills . | . . Allies Corrupted . | . . Allies Melted . | . . Intel | -11 -10 ------- Run | Yrd Mat Robot Analysis Total . | . . Derelict Logs Recovered . | . . Drone Launches . | . . Drone Recoveries . | . . Exploration | -11 -10 ------------- Run | Yrd Mat Turns Passed 1245 | 60 1185 Spaces Moved 645 | 18 627 Core . | . . Treads . | . . Legs 99 | 18 81 Wheels 546 | . 546 Hover . | . . Flight . | . . Fastest Speed 115 | 120 115 Average Speed 115 | 120 115 Slowest Speed 145 | 120 145 Overloaded Moves . | . . Propulsion Burnouts . | . . Robots Hopped . | . . Cave-ins Triggered . | . . Exploration Rate (%) 46 | 4 89 Regions Visited 1 Branch Regions . Pre-discovered Areas . | . . Known Exits Taken . | . . Unknown Exits Taken 1 | 1 . Scrap Searched . | . . Spaces Dug 9 | . 9 Terrain Destroyed 9 | . 9 Melee 1 | . 1 Projectile 8 | . 8 AOE . | . . Terrain Rammed . | . . Walls Destroyed . | . . Machines Disabled . | . . Actions | -11 -10 --------- Run | Yrd Mat Total 988 | 32 956 Wait 221 | . 221 Move 644 | 17 627 Hop . | . . Pick Up 15 | 2 13 Fast Attach 1 | 1 . Attach 4 | . 4 Detach . | . . Swap 16 | . 16 Drop 4 | . 4 Fire 70 | 12 58 Melee 13 | . 13 Ram . | . . Kick . | . . Crush . | . . Escape Stasis . | . . Rewire . | . . Trap . | . . Miscellaneous . | . . Route ------- -11/Scrapyard -10/Materials (discovered 5 exits: [*Mat x2] / [*Min x2] / [Sub]) History --------- Turn | Location | Event 17 | -11/Scrapyard | Discovered new exit (range 2) 61 | -11/Scrapyard | Entered Materials 78 | -10/Materials | Discovered new exit (range 11) 318 | -10/Materials | Build established: Mutant 319 | -10/Materials | Discovered new exit (range 10) 632 | -10/Materials | Discovered new exit (range 11) 779 | -10/Materials | Discovered new exit (range 16) 1122 | -10/Materials | Discovered new exit (range 4) 1167 | -10/Materials | Core integrity fell below 50% 1220 | -10/Materials | Core integrity fell below 20% 1246 | -10/Materials | Destroyed by G-34 Mercenary with Small Laser Last Messages --------------- 01178_ G-34 Mercenary overheating. 01183_ Heat Sink melted. 01183_ Aluminum Leg melted. 01183_ Sml. Laser melted. 01183_ G-34 Mercenary destroyed. 01185_ Ion Engine destroyed. 01190_ G-34 Mercenary destroyed. 01195_ Med. Laser destroyed. 01203_ G-34 Mercenary destroyed. 01205_ Com. Wheel destroyed. 01211_ G-34 Mercenary knocked back. 01213_ R-06 Scavenger collects Aluminum Leg. 01224_ G-34 Mercenary knocked back. 01226_ G-34 Mercenary suffers critical hit (Smash). 01226_ Destroyed Sml. Laser. 01226_ Destroyed Heat Sink. 01226_ G-34 Mercenary system corrupted by crushing effect. 01227_ G-34 Mercenary system terminally corrupted. 01234_ Lgt. Ion Engine destroyed. 01235_ M-13 Machinist repairs G-34 Mercenary. Map ----- +----------------------------------------------------+ | ####### """ # # ########## "# | | #####"# """ # ! + + T# | | # # # # ######"### "# | | " ! # ! # #### ### "# | | #! !# ! ###+###### < ### "# | | ########!! ### ### ### # | | # ########!! ### ### ######## | | ## ###????## ### ! ### ######## | | ## ###????########## ### ###????? | | ## ################# ### ###????? | | ## ########### ####### ##????? | | ## ##????? | | ## < ##????? | | ## % ##????? | | ################ ####### ##????? | | ####### =[% ###? ######### #####????? | | ##???## """ "##??? ##????### #####????? | | ##???## """ "##????######### ##???????? | | ?????## """ "##????######### ##???????? | | ?????## T# ????## ### ##???????? | | ?????## """ "# ??? ## "" ### ##???????? | | ?????## """ "# ??? ## Y" ### ##???????? | | ####### """ "# ?? ## "" ### ##??????## | | ####### # ## ### ## ??? # | | ##+###### ## # ## # | | #!* @# / # | | < #**!%gr ## # | | #** *#g ## ? # | | "##/######### ######m ## ??? # | | !" "# ## ? ##### # ????? # | | """"""# """ = ##???????? # ????? # | | ####### """ ##??????? + ??????? | | ####### """ ##????? # ?????? | | ####### ! ##?????### # ??? | | ### !! ##?????#####+########??? | | # + !! ##??????# ####??? | | # # ####???????????????????? | | # ##############???????????????????? | | # ### ##???????????????????? | | ### """ ##???????????????????? | | ### """""##???????????????????? | | # """""##???????????????????? | | + """""##???????????????????? | | # """ ##???????????????????? | | #+####### ##???????????????????? | | #### ##???????????????????? | | ###############???????????????????? | | """ # ######???????????????????? | | """ # = """ ##???????????????????????? | | """ # "R" ##???????????????????????? | +----------------------------------------------------+ Best States ------------- Heat Dissipation 25 Energy Generation 10 Energy Capacity 250 Matter Stores 300 Matter Capacity 300 Sight Range 16 Terrain Scan Range 16 Terrain Scan Density 10 ECM Strength 1 Evasion (%) 55 Item Schematics ----------------- None Robot Schematics ------------------ None Fabricated ------------ Nothing Alien Tech Used ----------------- None Achievements -------------- None Challenges ------------ None Game ------ Seed DimensionalThunderSuite Manual? 0 Play Time 00:18:39 Cumulative 175.5 hours Start 2024.05.20 @ 07:00:51 End 2024.05.20 @ 07:22:07 Sessions 1 Manual Loads 0 Difficulty Rogue Special Mode None Game No. 145 Rogue 139 Adventurer 0 Explorer 6 Win Type - Total 4 Types 4/0/0/0/0/0/0/0/0 Lore% 44 Gallery% 59 Achievement% 48 Wizard Run 0 Options --------- Layout 0 ASCII 0 Keyboard 0 Movement Numpad Keybinds 0 Fullscreen 2 Font 24/Smallcaps Map View 113x50 Zoom Use 0% Tactical HUD 1 Map Filters NONE Filters NONE Steam 1 RUN: 17498921-8588-4879-80b3-c91d178e26a7